bitfinex/quotes_SOLUSD_20250216
["timestamp","ask_amount","ask_price","bid_price","bid_amount"]
[1739742573860,13.98041397,189.16,189.11,0.03]
[1739742574962,5.287,189.14,189.11,0.03]
[1739742575638,13.98091397,189.14,189.11,0.03]
[1739742576952,8.69391397,189.12,189.11,0.03]
[1739742579460,13.98151397,189.12,189.11,0.03]
[1739742579966,5.2876,189.12,189.11,0.03]
[1739742581461,13.98131397,189.13,189.11,0.03]
[1739742583667,5.2874,189.13,189.11,0.03]
[1739742583879,8.69391397,189.15,189.11,0.03]
[1739742584170,8.69391397,189.16,189.11,0.03]
[1739742584373,13.97991397,189.18,189.11,8.72391397]
[1739742585264,8.69391397,189.17,189.11,0.03]
[1739742586167,13.98031397,189.17,189.11,0.03]
[1739742588377,8.69391397,189.16,189.11,0.03]
[1739742588951,8.69391397,189.17,189.11,0.03]
[1739742589680,8.69391397,189.12,189.11,0.03]
[1739742590771,8.69391397,189.13,189.11,0.03]
[1739742591571,5.2876,189.12,189.11,0.03]
[1739742593183,8.69391397,189.13,189.11,0.03]
[1739742593363,13.98121397,189.13,189.11,0.03]
[1739742593762,8.69391397,189.15,189.11,0.03]
[1739742593964,13.98061397,189.16,189.11,0.03]
[1739742594851,8.69391397,189.17,189.11,8.72391397]
[1739742595261,8.69391397,189.16,189.11,0.03]
[1739742595573,8.69391397,189.13,189.11,0.03]
[1739742597183,8.69391397,189.14,189.11,0.03]
[1739742597354,8.69391397,189.15,189.11,0.03]
[1739742597671,8.69391397,189.16,189.11,0.03]
[1739742597878,13.98011397,189.17,189.11,0.03]
[1739742598488,8.69391397,189.16,189.11,0.03]
[1739742599179,8.69391397,189.17,189.11,0.03]
[1739742599476,90.99401397,189.19,189.12,8.69391397]
[1739742600259,96.27971397,189.19,189.12,13.98151397]
[1739742600459,8.69391397,189.18,189.12,5.2876]
[1739742600657,8.69391397,189.15,189.11,0.03]
[1739742601200,8.69391397,189.13,189.11,0.03]
[1739742601483,8.69391397,189.14,189.11,0.03]
[1739742602480,5.2873,189.13,189.11,0.03]
[1739742602988,13.98101397,189.14,189.11,0.03]
[1739742603359,28.69391397,189.16,189.11,0.03]
[1739742603567,8.69391397,189.17,189.11,0.03]
[1739742604190,13.97981397,189.18,189.11,8.72391397]
[1739742604566,13.97981397,189.18,189.12,5.2876]
[1739742604769,13.97981397,189.18,189.11,14.01171397]
[1739742605683,8.69391397,189.18,189.11,14.01171397]
[1739742605889,8.69391397,189.18,189.12,8.69391397]
[1739742606276,8.69391397,189.16,189.11,0.03]
[1739742607787,8.69391397,189.17,189.11,0.03]
[1739742609390,5.2865,189.16,189.11,0.03]
[1739742610571,0.0001,189.19,189.14,8.69391397]
[1739742610972,5.2858,189.19,189.12,16.71091397]
[1739742611190,8.69391397,189.14,189.11,0.03]
[1739742611565,8.69391397,189.12,189.11,0.03]
[1739742612491,43.46956985,189.12,189.11,0.03]
[1739742612669,13.98151397,189.12,189.11,0.03]
[1739742613290,62.16901838,189.12,189.08,0.03]
[1739742613508,63.46956985,189.09,189.08,0.03]
[1739742614594,52.51577334,189.09,189.08,0.03]
[1739742615490,65.92762187,189.09,189.01,0.03]
[1739742615673,13.61368667,189.02,189.01,0.03]
[1739742616680,18.90408667,189.02,189.01,0.03]
[1739742620773,13.61368667,189.02,189.01,0.03]
[1739742620973,13.61368667,189.03,189.01,0.03]
[1739742621204,13.61368667,189.05,189.01,0.03]
[1739742621696,13.61368667,189.06,189.01,0.03]
[1739742622288,13.61368667,189.05,189.01,0.03]
[1739742622800,13.61368667,189.04,189.01,0.03]
[1739742623603,13.61368667,189.02,189.01,0.03]
[1739742624007,27.22737334,189.02,189.01,0.03]
[1739742624194,20.0,188.99,188.97,0.03]
[1739742624506,13.61368667,188.98,188.97,0.03]
[1739742626581,18.90518667,188.98,188.97,0.03]
[1739742629204,13.61368667,188.98,188.97,0.03]
[1739742629698,13.61368667,189.01,188.97,0.03]
[1739742629910,13.61368667,189.0,188.97,0.03]
[1739742630206,13.61368667,188.99,188.97,0.03]
[1739742630407,13.61368667,189.0,188.97,0.03]
[1739742630704,13.61368667,189.01,188.97,0.03]
[1739742631032,13.61368667,189.03,188.97,13.64368667]
[1739742631188,13.61368667,189.05,188.98,16.27838667]
[1739742631691,13.61368667,189.04,188.98,2.6647]
[1739742632300,13.61368667,189.05,188.98,16.27838667]
[1739742632509,13.61368667,189.05,188.99,5.2912]
[1739742634491,13.61368667,189.05,188.99,18.90488667]
[1739742634905,13.61368667,189.05,188.99,5.2912]
[1739742635097,18.90328667,189.05,188.99,5.2912]
[1739742635298,13.61368667,189.05,188.99,18.90488667]
[1739742635498,13.61368667,189.04,188.98,7.9562]
[1739742635816,13.61368667,188.99,188.97,0.03]
[1739742638517,13.61368667,189.0,188.97,0.03]
[1739742639423,13.61368667,189.03,188.97,0.03]
[1739742640319,13.67668667,189.05,188.99,13.61368667]
[1739742640489,13.67668667,189.05,188.99,18.90478667]
[1739742640919,0.063,189.05,189.0,13.61368667]
[1739742642622,0.063,189.05,189.0,18.90438667]
[1739742644503,13.61368667,189.03,188.98,16.3579]
[1739742644699,13.61368667,189.0,188.97,0.03]
[1739742645010,13.61368667,188.99,188.97,0.03]
[1739742646614,13.61368667,188.98,188.97,0.03]
[1739742646924,13.61368667,189.01,188.97,0.03]
[1739742647830,13.61368667,189.02,188.97,0.03]
[1739742649320,38.90388667,189.03,188.97,0.03]
[1739742650527,13.61368667,189.03,188.97,0.03]
[1739742650828,13.67668667,189.05,188.98,13.61368667]
[1739742651003,13.67668667,189.05,188.97,13.44184853]
[1739742651004,13.61368667,189.02,188.97,0.03]
[1739742651203,13.61368667,189.01,188.97,0.03]
[1739742651826,33.61368667,189.02,188.97,0.03]
[1739742652322,33.67668667,189.02,188.97,0.03]
[1739742653122,38.96708667,189.02,188.97,0.03]
[1739742653326,13.61368667,189.01,188.97,0.03]
[1739742654731,18.90448667,189.01,188.97,0.03]
[1739742656732,13.61368667,189.01,188.97,0.03]
[1739742657519,18.90438667,189.01,188.97,0.03]
[1739742657724,13.67668667,189.02,188.97,0.03]
[1739742658230,0.063,189.02,188.97,0.03]
[1739742658615,0.063,189.02,188.97,5.3218]
[1739742659019,0.063,189.02,188.97,0.03]
[1739742659223,13.67668667,189.02,188.97,0.03]
[1739742660634,18.96708667,189.02,188.97,0.03]
[1739742665739,0.063,189.02,188.97,0.03]
[1739742667835,8.77508797,189.02,188.97,0.03]
[1739742668047,0.063,189.02,188.97,0.03]
[1739742668336,0.063,189.02,188.98,8.71208797]
[1739742668940,0.063,189.02,188.99,8.71208797]
[1739742669741,0.063,189.02,188.99,14.00318797]
[1739742672438,0.063,189.02,189.0,14.00298797]
[1739742673328,0.063,189.02,189.01,8.71208797]
[1739742674734,0.063,189.02,189.01,14.00278797]
[1739742675447,0.063,189.02,189.01,28.20797311]
[1739742678647,0.063,189.02,189.01,27.4146365]
[1739742679339,0.063,189.02,189.01,51.8146365]
[1739742680745,0.063,189.02,189.01,51.60788745]
[1739742680920,0.063,189.02,189.01,42.10254853]
[1739742682041,0.063,189.02,189.01,28.6907]
[1739742682260,0.063,189.02,189.01,23.4]
[1739742682846,0.063,189.02,188.97,8.74208797]
[1739742683143,8.77508797,189.02,188.97,0.03]
[1739742684045,8.71208797,188.98,188.97,0.03]
[1739742684223,14.00358797,188.98,188.97,0.03]
[1739742684418,14.00338797,188.99,188.97,0.03]
[1739742684649,8.71208797,188.99,188.97,0.03]
[1739742684827,14.00308797,189.0,188.97,0.03]
[1739742685957,8.71208797,188.99,188.97,0.03]
[1739742687142,8.71208797,189.0,188.97,0.03]
[1739742688568,8.77508797,189.02,188.97,0.03]
[1739742689049,14.06558797,189.02,188.97,0.03]
[1739742690939,8.71208797,188.99,188.97,0.03]
[1739742692746,8.71208797,189.01,188.97,0.03]
[1739742693242,8.71208797,188.98,188.97,0.03]
[1739742694270,14.00358797,188.98,188.97,0.03]
[1739742694435,8.71208797,188.98,188.97,0.03]
[1739742694632,14.00358797,188.98,188.97,0.03]
[1739742699154,8.71208797,188.99,188.97,0.03]
[1739742700250,8.71208797,189.0,188.97,0.03]
[1739742700436,8.71208797,188.99,188.97,0.03]
[1739742702154,14.00338797,188.99,188.97,0.03]
[1739742705166,8.71208797,189.0,188.97,0.03]
[1739742705539,8.77508797,189.01,188.97,0.03]
[1739742706033,14.06588797,189.01,188.97,0.03]
[1739742707064,0.063,189.01,188.97,8.74208797]
[1739742707249,0.063,189.01,188.99,8.71208797]
[1739742708152,0.063,189.01,188.98,16.62468797]
[1739742708464,0.063,189.01,188.98,11.33328797]
[1739742710767,0.063,189.01,188.98,16.62468797]
[1739742711452,0.063,189.01,188.99,8.71208797]
[1739742712565,0.063,189.01,188.99,5.2912]
[1739742713467,0.063,189.01,188.98,2.6212]
[1739742714369,0.063,189.01,188.98,16.62478797]
[1739742717147,0.063,189.01,188.98,11.33328797]
[1739742717472,0.063,189.01,188.98,16.62478797]
[1739742718047,0.063,189.01,188.98,11.33328797]
[1739742718251,0.063,189.01,188.98,2.6212]
[1739742719778,0.063,189.01,188.98,16.62468797]
[1739742720957,0.063,189.01,188.98,16.65468797]
[1739742721374,0.063,189.01,188.98,2.6512]
[1739742721960,0.063,189.01,188.98,16.65468797]
[1739742722160,0.063,189.01,189.0,8.71208797]
[1739742722347,0.063,189.01,188.99,8.71208797]
[1739742722692,0.063,189.01,188.98,16.65468797]
[1739742737392,0.063,189.01,188.99,8.71208797]
[1739742738092,0.063,189.01,189.0,8.71208797]
[1739742738491,0.063,189.01,189.0,14.00308797]
[1739742738666,0.063,189.01,189.0,28.20834116]
[1739742739004,0.063,189.01,189.0,63.05669304]
[1739742739181,0.063,189.01,189.0,28.20834116]
[1739742739770,0.063,189.01,189.0,29.20834116]
[1739742739969,0.063,189.01,189.0,64.05669304]
[1739742741390,0.063,189.01,189.0,65.05669304]
[1739742741784,0.063,189.01,189.0,88.45669304]
[1739742741980,0.063,189.01,189.0,87.45669304]
[1739742742382,0.063,189.01,189.0,51.60834116]
[1739742742566,0.063,189.01,189.0,50.8149365]
[1739742743581,0.063,189.01,189.0,51.8149365]
[1739742744296,0.063,189.01,189.0,50.8149365]
[1739742744475,0.063,189.01,189.0,51.8149365]
[1739742747572,0.063,189.01,189.0,87.66328838]
[1739742747976,0.063,189.01,189.0,169.16328838]
[1739742750094,0.063,189.01,189.0,180.20348838]
[1739742753207,0.063,189.01,189.0,132.3149365]
[1739742753500,0.063,189.01,189.0,118.90308797]
[1739742753703,0.063,189.01,189.0,95.50308797]
[1739742754413,0.063,189.01,189.0,81.5]
[1739742754611,0.063,189.01,189.0,95.50308797]
[1739742754905,0.063,189.01,189.0,145.5567261]
[1739742755090,0.063,189.01,189.0,144.76328838]
[1739742755510,0.063,189.01,189.0,145.76328838]
[1739742755891,0.0001,189.01,189.0,145.76328838]
[1739742757613,0.0001,189.01,189.0,145.79328838]
[1739742757792,0.063,189.05,189.01,15.41184853]
[1739742757999,0.063,189.05,189.04,8.71208797]
[1739742758198,0.063,189.05,189.04,9.50520285]
[1739742759618,0.063,189.05,189.04,14.79500285]
[1739742761216,0.063,189.05,189.04,135.10685138]
[1739742761415,0.063,189.05,189.04,134.3137365]
[1739742762319,0.063,189.08,189.05,15.41184853]
[1739742762497,0.063,189.08,189.07,8.71208797]
[1739742764605,0.063,189.08,189.07,27.4129365]
[1739742765016,0.063,189.08,189.07,132.3129365]
[1739742765819,0.063,189.08,189.07,133.3129365]
[1739742767207,0.063,189.08,189.07,132.3129365]
[1739742767707,0.063,189.08,189.07,133.3129365]
[1739742772728,0.063,189.08,189.07,132.3129365]
[1739742773526,0.063,189.08,189.07,133.3129365]
[1739742774833,0.063,189.08,189.07,132.3129365]
[1739742782031,0.063,189.08,189.07,133.3129365]
[1739742782335,0.063,189.08,189.07,134.3129365]
[1739742783716,0.063,189.08,189.07,132.3129365]
[1739742783917,0.063,189.08,189.07,134.3129365]
[1739742790340,10.6559,189.18,189.08,15.41184853]
[1739742790526,10.6559,189.18,189.13,8.71208797]
[1739742792443,10.6559,189.18,189.13,13.99938797]
[1739742792616,10.6559,189.18,189.14,8.71208797]
[1739742792816,0.0001,189.19,189.17,8.71208797]
[1739742793716,8.71208797,189.18,189.12,8.71208797]
[1739742793939,8.71208797,189.18,189.11,90.21208797]
[1739742794443,8.71218797,189.19,189.12,8.71208797]
[1739742794829,13.99778797,189.19,189.12,8.71208797]
[1739742795029,5.2857,189.19,189.13,8.71208797]
[1739742795838,5.2857,189.19,189.13,13.99928797]
[1739742796438,0.0001,189.19,189.16,8.71208797]
[1739742796743,0.0001,189.19,189.15,8.71208797]
[1739742797443,0.0001,189.19,189.14,103.6239365]
[1739742797638,8.71208797,189.18,189.14,81.5]
[1739742797845,13.99818797,189.18,189.14,81.5]
[1739742798545,13.99788797,189.19,189.14,81.5]
[1739742799426,5.2858,189.19,189.14,81.5]
[1739742800941,0.0001,189.19,189.15,8.71208797]
[1739742801246,0.0001,189.19,189.16,8.71208797]
[1739742802343,0.0001,189.19,189.16,13.99838797]
[1739742804153,0.0001,189.19,189.16,5.2863]
[1739742804554,0.0001,189.19,189.16,13.99838797]
[1739742805636,0.0001,189.19,189.15,90.21208797]
[1739742805837,0.0001,189.19,189.15,81.5]
[1739742806226,0.0001,189.19,189.15,86.7867]
[1739742806856,0.0001,189.19,189.15,95.49878797]
[1739742807021,0.0001,189.19,189.16,8.71208797]
[1739742807227,0.0001,189.19,189.15,118.89878797]
[1739742807446,0.0001,189.19,189.15,113.61208797]
[1739742807656,0.0001,189.19,189.15,104.9]
[1739742808660,0.0001,189.19,189.15,110.1867]
[1739742809336,0.0001,189.19,189.15,104.9]
[1739742809542,8.71208797,189.18,189.15,104.9]
[1739742809752,8.71208797,189.18,189.12,13.99958797]
[1739742809753,8.71208797,189.17,189.1,14.00028797]
[1739742810056,8.71208797,189.15,189.1,81.5]
[1739742810954,8.71208797,189.11,189.08,83.79]
[1739742811251,8.71208797,189.11,189.08,0.03]
[1739742811630,8.71208797,189.12,189.08,0.03]
[1739742812351,8.71208797,189.11,189.08,0.03]
[1739742813141,13.99998797,189.11,189.08,0.03]
[1739742816053,8.71208797,189.11,189.08,0.03]
[1739742816854,8.77508797,189.11,189.08,0.03]
[1739742822457,8.71208797,189.09,189.08,0.03]
[1739742824452,14.00048797,189.09,189.08,0.03]
[1739742829261,48.84883985,189.09,189.08,0.03]
[1739742830565,14.00048797,189.09,189.08,0.03]
[1739742838152,48.84883985,189.09,189.08,0.03]
[1739742839868,20.0,189.06,189.05,0.03]
[1739742840073,28.71208797,189.06,189.05,0.03]
[1739742840276,34.00138797,189.06,189.05,0.03]
[1739742840775,34.00138797,189.06,189.05,0.0001]
[1739742846356,35.00138797,189.06,189.05,0.0001]
[1739742846658,34.00138797,189.06,189.05,0.0001]
[1739742846857,48.4132365,189.06,189.05,0.0001]
[1739742847078,47.4132365,189.06,189.05,0.0001]
[1739742847468,20.0,189.02,189.0,0.03]
[1739742847780,20.0,189.02,188.99,0.03]
[1739742847781,43.56043985,189.01,188.99,0.03]
[1739742847956,43.56043985,189.0,188.99,0.03]
[1739742849262,48.85143985,189.0,188.99,0.03]
[1739742850197,48.85143985,189.0,188.98,0.03]
[1739742850371,48.85143985,189.0,188.98,0.0001]
[1739742850372,8.71208797,188.99,188.98,0.0001]
[1739742851384,14.00328797,188.99,188.98,0.0001]
[1739742852759,15.00328797,188.99,188.97,0.0001]
[1739742852978,8.71208797,188.98,188.97,0.0001]
[1739742853264,8.71208797,188.93,188.92,0.03]
[1739742854773,14.00498797,188.93,188.92,0.03]
[1739742866192,8.71208797,188.93,188.92,0.03]
[1739742867996,14.00498797,188.93,188.92,0.03]
[1739742873993,14.00498797,188.93,188.86,0.03]
[1739742873994,28.71208797,188.9,188.86,0.03]
[1739742874679,28.71208797,188.9,188.89,0.0001]
[1739742875474,34.00588797,188.9,188.89,0.0001]
[1739742884103,14.00588797,188.9,188.89,0.0001]
[1739742884803,8.71208797,188.9,188.89,0.0001]
[1739742885011,8.71208797,188.91,188.89,0.0001]
[1739742885587,8.71208797,188.92,188.89,0.0001]
[1739742885791,8.71208797,188.91,188.89,0.0001]
[1739742886110,8.71208797,188.9,188.89,0.0001]
[1739742887009,14.00588797,188.9,188.89,0.0001]
[1739742889707,8.71208797,188.9,188.89,0.0001]
[1739742889910,8.71208797,188.91,188.89,0.0001]
[1739742890318,0.063,188.9,188.89,0.0001]
[1739742890989,8.77508797,188.9,188.89,0.0001]
[1739742891191,0.063,188.9,188.89,0.0001]
[1739742902814,8.77508797,188.9,188.89,0.0001]
[1739742904546,14.06888797,188.9,188.89,0.0001]
[1739742909450,28.4807365,188.9,188.89,0.0001]
[1739742909849,20.0,188.87,188.86,0.03]
[1739742910160,28.71208797,188.87,188.86,0.03]
[1739742911887,34.00668797,188.87,188.86,0.03]
[1739742915676,28.71208797,188.87,188.86,0.03]
[1739742915850,14.00618797,188.89,188.86,0.03]
[1739742916052,14.06888797,188.9,188.86,0.03]
[1739742916660,8.71208797,188.89,188.86,0.03]
[1739742918145,8.71208797,188.88,188.86,0.03]
[1739742918351,5.2941,188.89,188.86,0.03]
[1739742918971,0.063,188.9,188.86,0.03]
[1739742919182,20.063,188.9,188.86,0.03]
[1739742921681,20.0,188.87,188.86,0.03]
[1739742926680,34.41184853,188.87,188.77,2.5306]
[1739742927855,19.5322,188.86,188.77,2.5306]
[1739742928074,18.5322,188.86,188.77,2.5306]
[1739742928561,20.0,188.83,188.77,2.5306]
[1739742928994,20.0,188.81,188.73,0.03]
[1739742929781,5.2966,188.8,188.73,0.03]
[1739742934590,20.0,188.81,188.73,0.03]
[1739742934788,13.2375,188.86,188.75,8.72578666]
[1739742935098,20.0,188.82,188.75,8.72578666]
[1739742936083,5.2952,188.85,188.76,14.02348666]
[1739742936782,5.2952,188.85,188.78,2.6734]
[1739742936982,5.2952,188.85,188.78,11.39918666]
[1739742937210,5.2952,188.85,188.78,2.6734]
[1739742938090,20.0,188.85,188.78,2.6734]
[1739742938831,20.0,188.85,188.79,8.72578666]
[1739742938993,20.0,188.85,188.79,19.38858666]
[1739742939691,20.0,188.85,188.79,10.6628]
[1739742940317,5.2953,188.85,188.79,10.6628]
[1739742942318,0.063,188.86,188.79,10.6628]
[1739742942492,5.3579,188.86,188.8,8.72578666]
[1739742942688,5.3579,188.86,188.79,24.68528666]
[1739742943717,0.063,188.86,188.79,24.68528666]
[1739742944516,0.063,188.86,188.8,8.72578666]
[1739742944816,5.3579,188.86,188.8,8.72578666]
[1739742946015,0.063,188.86,188.81,8.72578666]
[1739742946419,0.063,188.86,188.79,24.68538666]
[1739742947627,0.063,188.86,188.8,14.02228666]
[1739742947798,0.063,188.86,188.81,8.72578666]
[1739742949196,0.063,188.86,188.81,14.02188666]
[1739742951427,0.063,188.86,188.83,8.72578666]
[1739742951714,0.063,188.86,188.82,8.72578666]
[1739742951916,0.063,188.86,188.8,5.2965]
[1739742952310,0.063,188.86,188.79,10.6928]
[1739742956322,0.063,188.86,188.79,10.6928]
[1739742961132,0.063,188.86,188.79,0.03]
[1739742962235,1.063,188.86,188.79,0.03]
[1739742963216,20.0,188.82,188.79,0.03]
[1739742964507,5.296,188.82,188.79,0.03]
[1739742964824,6.296,188.82,188.73,0.03]
[1739742965012,20.0,188.79,188.73,0.03]
[1739742966016,5.2971,188.78,188.73,0.03]
[1739742970420,18.54,188.78,188.73,0.03]
[1739742972351,20.0,188.75,188.73,0.03]
[1739742973150,20.0,188.74,188.73,0.03]
[1739742973352,21.0,188.74,188.7,0.03]
[1739742973947,20.0,188.74,188.7,0.03]
[1739742974435,20.0,188.71,188.7,0.03]
[1739742976547,5.2988,188.72,188.7,0.03]
[1739742977956,20.0,188.73,188.7,0.03]
[1739742978122,25.2987,188.73,188.7,0.03]
[1739742984563,5.2987,188.73,188.7,0.03]
[1739742985865,5.2982,188.74,188.7,0.03]
[1739742986456,20.0,188.71,188.7,0.0001]
[1739742986774,20.0,188.7,188.58,2.6338]
[1739742988274,20.0,188.66,188.58,2.6338]
[1739742990071,5.3008,188.65,188.58,2.6338]
[1739742991477,20.0,188.66,188.58,16.66228666]
[1739742991771,5.2988,188.72,188.63,8.72578666]
[1739742992158,0.063,188.73,188.63,14.02708666]
[1739742992355,20.0,188.72,188.63,14.02708666]
[1739742992673,0.063,188.73,188.63,14.02708666]
[1739742993350,5.2991,188.71,188.64,8.72578666]
[1739742993547,0.063,188.73,188.65,11.35958666]
[1739742993974,0.063,188.73,188.66,8.72578666]
[1739742994275,0.063,188.73,188.67,8.72578666]
[1739742994459,0.063,188.73,188.68,8.72578666]
[1739742995452,0.063,188.73,188.68,14.02548666]
[1739742997173,0.063,188.73,188.69,8.72578666]
[1739742997562,0.063,188.73,188.7,8.72578666]
[1739742997765,0.063,188.73,188.71,8.72578666]
[1739742998477,0.063,188.73,188.7,8.72578666]
[1739742999873,0.063,188.73,188.71,14.02488666]
[1739743001183,0.063,188.73,188.72,11.28398666]
[1739743001571,0.063,188.73,188.72,34.74873519]
[1739743003181,0.063,188.73,188.72,40.04753519]
[1739743004375,5.3579,188.86,188.73,13.41184853]
[1739743004680,5.3579,188.86,188.8,8.72578666]
[1739743004866,0.063,188.86,188.8,8.72578666]
[1739743005066,0.063,188.86,188.82,8.72578666]
[1739743006680,0.063,188.86,188.82,13.63438446]
[1739743009786,0.063,188.86,188.81,2.5582]
[1739743011189,0.063,188.86,188.81,16.19258446]
[1739743011563,0.063,188.86,188.81,2.5582]
[1739743013687,0.063,188.86,188.81,16.19258446]
[1739743013874,0.063,188.86,188.82,13.63438446]
[1739743014076,0.063,188.86,188.84,13.63438446]
[1739743015891,0.063,188.86,188.83,18.92998446]
[1739743016790,0.063,188.86,188.84,18.92978446]
[1739743017490,0.063,188.86,188.84,13.63438446]
[1739743017697,0.063,188.86,188.83,18.93008446]
[1739743018786,0.063,188.86,188.84,18.92978446]
[1739743018987,0.063,188.86,188.85,13.63438446]
[1739743020407,0.063,188.86,188.84,18.92978446]
[1739743021485,0.063,188.86,188.85,13.63438446]
[1739743021996,0.063,188.86,188.85,27.04623299]
[1739743022290,0.063,188.86,188.85,27.84029542]
[1739743022881,0.063,188.86,188.85,27.82995515]
[1739743023380,0.063,188.86,188.85,32.33109272]
[1739743026689,0.063,188.86,188.84,37.02404419]
[1739743027308,0.063,188.86,188.84,23.4]
[1739743028106,0.063,188.86,188.84,37.02404419]
[1739743028386,0.063,188.86,188.84,13.62404419]
[1739743028593,0.063,188.86,188.84,8.72385601]
[1739743029690,0.063,188.86,188.85,8.72385601]
[1739743029882,0.063,188.86,188.85,46.32983913]
[1739743030083,0.063,188.86,188.85,47.32983913]
[1739743030676,0.063,188.86,188.85,46.32983913]
[1739743031088,0.063,188.86,188.85,51.62503913]
[1739743031590,0.063,188.86,188.85,52.62503913]
[1739743031972,0.063,188.86,188.85,51.62503913]
[1739743033885,0.063,188.86,188.85,52.62503913]
[1739743034202,0.063,188.86,188.85,53.62503913]
[1739743035697,0.063,188.86,188.85,51.62503913]
[1739743037695,0.063,188.89,188.86,18.70654853]
[1739743037898,0.063,188.89,188.86,13.41184853]
[1739743038307,0.063,188.89,188.86,22.13570454]
[1739743039911,0.063,188.89,188.87,8.72385601]
[1739743041816,0.063,188.89,188.85,8.72385601]
[1739743042031,0.063,188.89,188.84,8.72385601]
[1739743043222,0.063,188.89,188.83,27.43140454]
[1739743043395,8.72385601,188.88,188.81,8.72385601]
[1739743043600,8.72385601,188.87,188.8,8.72385601]
[1739743043902,8.72385601,188.86,188.8,8.72385601]
[1739743044310,8.72385601,188.84,188.77,16.68905601]
[1739743045720,8.72385601,188.85,188.78,8.72385601]
[1739743045927,8.78685601,188.89,188.82,8.72385601]
[1739743047022,0.063,188.89,188.85,8.72385601]
[1739743047414,0.063,188.89,188.83,8.72385601]
[1739743047807,0.063,188.89,188.84,8.72385601]
[1739743048322,0.063,188.89,188.84,14.01915601]
[1739743048530,0.063,188.89,188.85,8.72385601]
[1739743048706,0.063,188.89,188.85,13.62959627]
[1739743049821,0.063,188.89,188.87,13.62959627]
[1739743050023,0.063,188.89,188.88,13.62959627]
[1739743050221,0.063,188.89,188.88,18.92389627]
[1739743050423,0.063,188.89,188.88,5.2943]
[1739743051117,0.063,188.89,188.88,18.92389627]
[1739743052308,0.063,188.89,188.88,32.3357448]
[1739743052511,0.063,188.9,188.89,13.41184853]
[1739743052717,0.063,188.9,188.89,27.0414448]
[1739743054433,0.063,188.9,188.89,32.3354448]
[1739743061630,0.063,188.92,188.89,33.12923716]
[1739743062029,0.063,188.92,188.91,13.62959627]
[1739743062227,0.063,188.92,188.91,14.42335693]
[1739743062833,0.063,188.92,188.91,18.92309627]
[1739743069347,0.063,188.92,188.91,33.128709]
[1739743070756,0.063,188.92,188.91,28.21358804]
[1739743070957,0.0001,188.92,188.91,28.21358804]
[1739743071260,0.0001,188.92,188.91,63.07148928]
[1739743071850,0.0001,188.92,188.91,65.77918928]
[1739743072349,0.0001,188.92,188.91,66.77918928]
[1739743073450,0.0001,188.92,188.91,67.77918928]
[1739743073849,0.0001,188.92,188.91,172.67918928]
[1739743074159,0.063,188.97,188.96,22.12632384]
[1739743074736,0.063,188.97,188.95,8.71447531]
[1739743074964,0.063,188.97,188.94,8.71447531]
[1739743075548,0.063,188.97,188.96,8.71447531]
[1739743077850,0.063,188.97,188.96,14.00657531]
[1739743082562,0.063,188.97,188.96,28.21197132]
[1739743083251,0.063,188.97,188.96,109.71197132]
[1739743083451,0.063,188.97,188.96,108.91842384]
[1739743086380,0.063,188.97,188.96,132.31842384]
[1739743088558,0.0001,188.97,188.96,132.31842384]
[1739743089277,0.0001,188.97,188.96,133.31842384]
[1739743090204,0.0001,188.97,188.96,134.31842384]
[1739743091212,0.063,189.05,189.04,8.71447531]
[1739743091789,0.063,189.05,189.03,8.71447531]
[1739743093306,0.063,189.05,189.03,14.00457531]